[Event "*** Titled Tuesday Blitz"]
[Site "Chess.com"]
[Date "2021.02.09"]
[Round "7"]
[White "LubovMarkelova"]
[Black "manmanlai1"]
[Result "0-1"]
[WhiteElo "2259"]
[BlackElo "2470"]
[TimeControl "180+1"]
[EndTime "11:17:37 PST"]
[Termination "manmanlai1 won by resignation"]

1. d4 {[%clk 0:03:00.9]} 1... d5 {[%clk 0:02:52.8]} 2. Nf3 {[%clk 0:03:00.5]}
2... Nf6 {[%clk 0:02:47.3]} 3. Bf4 {[%clk 0:03:00.3]} 3... e6 {[%clk 0:02:44]}
4. e3 {[%clk 0:02:59.7]} 4... Bd6 {[%clk 0:02:44.4]} 5. Bg3 {[%clk 0:02:59.5]}
5... O-O {[%clk 0:02:39.9]} 6. Bd3 {[%clk 0:02:57.7]} 6... b6 {[%clk 0:02:40.2]}
7. O-O {[%clk 0:02:44.6]} 7... Ba6 {[%clk 0:02:32.6]} 8. Ne5 {[%clk 0:02:40.2]}
8... Bxd3 {[%clk 0:02:22.6]} 9. Qxd3 {[%clk 0:02:41.1]} 9... c5 {[%clk
0:02:17.8]} 10. c4 {[%clk 0:02:27.6]} 10... Bxe5 {[%clk 0:02:15.2]} 11. dxe5
{[%clk 0:02:26.4]} 11... Ne4 {[%clk 0:02:11.8]} 12. Rd1 {[%clk 0:02:21.7]} 12...
Nc6 {[%clk 0:02:07.4]} 13. cxd5 {[%clk 0:02:21.6]} 13... exd5 {[%clk 0:02:07.6]}
14. Qxd5 {[%clk 0:02:20.6]} 14... Qxd5 {[%clk 0:02:05.3]} 15. Rxd5 {[%clk
0:02:20.5]} 15... Nb4 {[%clk 0:02:05.3]} 16. Rd2 {[%clk 0:02:19.7]} 16... Nxd2
{[%clk 0:02:04.6]} 17. Nxd2 {[%clk 0:02:20.6]} 17... Rad8 {[%clk 0:02:03]} 18.
Nc4 {[%clk 0:02:19.8]} 18... Rd3 {[%clk 0:01:58.8]} 19. Kf1 {[%clk 0:02:08.8]}
19... b5 {[%clk 0:01:52.1]} 20. Nd6 {[%clk 0:02:08.8]} 20... a6 {[%clk
0:01:50.1]} 21. a3 {[%clk 0:02:02.7]} 21... Nc6 {[%clk 0:01:45.8]} 22. Ke2
{[%clk 0:01:57.3]} 22... c4 {[%clk 0:01:45.6]} 23. f4 {[%clk 0:01:56.3]} 23...
Rb3 {[%clk 0:01:43.7]} 24. Rd1 {[%clk 0:01:45.4]} 24... Rxb2+ {[%clk 0:01:42.8]}
25. Kf3 {[%clk 0:01:46.3]} 25... g6 {[%clk 0:01:35.9]} 26. Ke4 {[%clk
0:01:46.1]} 26... Ne7 {[%clk 0:01:31.6]} 27. Bh4 {[%clk 0:01:44.2]} 27... Nf5
{[%clk 0:01:25.6]} 28. Nxf5 {[%clk 0:01:38]} 28... gxf5+ {[%clk 0:01:17.9]} 29.
Kxf5 {[%clk 0:01:38.9]} 29... Rxg2 {[%clk 0:01:17.7]} 30. Be7 {[%clk 0:01:03.2]}
30... Rc8 {[%clk 0:01:15.2]} 31. Bb4 {[%clk 0:00:57.3]} 31... c3 {[%clk
0:01:08.4]} 32. Rc1 {[%clk 0:00:55.7]} 32... c2 {[%clk 0:01:07.5]} 33. e4 {[%clk
0:00:54.9]} 33... Rc4 {[%clk 0:00:59.9]} 34. h4 {[%clk 0:00:27.6]} 34... Rd4
{[%clk 0:00:59.3]} 35. h5 {[%clk 0:00:25.4]} 35... Rd1 {[%clk 0:00:53]} 36. Rxc2
{[%clk 0:00:25.2]} 0-1

[Event "*** Titled Tuesday Blitz"]
[Site "Chess.com"]
[Date "2021.02.09"]
[Round "7"]
[White "WilliamSchill"]
[Black "lacafi"]
[Result "1-0"]
[WhiteElo "1986"]
[BlackElo "2197"]
[TimeControl "180+1"]
[EndTime "11:17:38 PST"]
[Termination "WilliamSchill won on time"]

1. e4 {[%clk 0:03:00.9]} 1... c6 {[%clk 0:02:58.1]} 2. d4 {[%clk 0:02:59.6]}
2... d5 {[%clk 0:02:58.4]} 3. Nd2 {[%clk 0:02:59.8]} 3... dxe4 {[%clk
0:02:58.8]} 4. Nxe4 {[%clk 0:03:00.1]} 4... Nf6 {[%clk 0:02:59.7]} 5. Nxf6+
{[%clk 0:02:59.3]} 5... exf6 {[%clk 0:03:00.6]} 6. c3 {[%clk 0:02:56.9]} 6...
Bd6 {[%clk 0:03:00.5]} 7. Bd3 {[%clk 0:02:56.2]} 7... O-O {[%clk 0:03:00]} 8.
Qc2 {[%clk 0:02:56.3]} 8... h5 {[%clk 0:02:58.8]} 9. Be3 {[%clk 0:02:35.6]} 9...
Re8 {[%clk 0:02:57.1]} 10. O-O-O {[%clk 0:02:34.7]} 10... Nd7 {[%clk 0:02:57.3]}
11. Kb1 {[%clk 0:02:27.1]} 11... Nf8 {[%clk 0:02:56.6]} 12. Ne2 {[%clk
0:02:19.3]} 12... Qc7 {[%clk 0:02:46.2]} 13. h3 {[%clk 0:02:16.6]} 13... b5
{[%clk 0:02:42.5]} 14. g4 {[%clk 0:02:09.1]} 14... h4 {[%clk 0:02:26.8]} 15.
Rhe1 {[%clk 0:01:53.1]} 15... Be6 {[%clk 0:02:01.6]} 16. Nc1 {[%clk 0:01:37.5]}
16... a6 {[%clk 0:01:36.9]} 17. Nb3 {[%clk 0:01:35.5]} 17... a5 {[%clk 0:01:35]}
18. Nc5 {[%clk 0:01:33.2]} 18... Bxc5 {[%clk 0:01:34.8]} 19. dxc5 {[%clk
0:01:33.3]} 19... b4 {[%clk 0:01:31.3]} 20. c4 {[%clk 0:01:23.9]} 20... a4
{[%clk 0:01:30.4]} 21. Qc1 {[%clk 0:01:16.1]} 21... Reb8 {[%clk 0:01:22.7]} 22.
Bf4 {[%clk 0:01:15.7]} 22... Qa5 {[%clk 0:01:19.1]} 23. Bxb8 {[%clk 0:01:15.5]}
23... Rxb8 {[%clk 0:01:20]} 24. Qf4 {[%clk 0:01:10.2]} 24... Ra8 {[%clk
0:01:05.4]} 25. Qd6 {[%clk 0:01:02.5]} 25... Rc8 {[%clk 0:00:35.4]} 26. f4
{[%clk 0:00:56.9]} 26... Qa6 {[%clk 0:00:05.2]} 27. Qd4 {[%clk 0:00:42.1]} 27...
Nd7 {[%clk 0:00:03.9]} 28. f5 {[%clk 0:00:39.9]} 1-0

[Event "*** Titled Tuesday Blitz"]
[Site "Chess.com"]
[Date "2021.02.09"]
[Round "7"]
[White "HajiyevKanan"]
[Black "Aslanov_Umid"]
[Result "1/2-1/2"]
[WhiteElo "2485"]
[BlackElo "2360"]
[TimeControl "180+1"]
[EndTime "11:17:43 PST"]
[Termination "Game drawn - insufficient material"]

1. d4 {[%clk 0:03:00.9]} 1... Nf6 {[%clk 0:02:54.8]} 2. Nf3 {[%clk 0:03:01.8]}
2... g6 {[%clk 0:02:55.7]} 3. c4 {[%clk 0:03:02.4]} 3... Bg7 {[%clk 0:02:56.6]}
4. g3 {[%clk 0:03:03]} 4... O-O {[%clk 0:02:57.5]} 5. Bg2 {[%clk 0:03:03.9]}
5... d6 {[%clk 0:02:58.2]} 6. O-O {[%clk 0:03:04.8]} 6... Nbd7 {[%clk
0:02:58.2]} 7. b3 {[%clk 0:03:05.7]} 7... e5 {[%clk 0:02:59.1]} 8. Bb2 {[%clk
0:03:06.4]} 8... exd4 {[%clk 0:02:59.6]} 9. Nxd4 {[%clk 0:03:07.3]} 9... Nc5
{[%clk 0:02:59.4]} 10. Nc3 {[%clk 0:03:07.8]} 10... Ne6 {[%clk 0:03:00.1]} 11.
e3 {[%clk 0:03:06.7]} 11... Qe7 {[%clk 0:02:59.8]} 12. Nxe6 {[%clk 0:03:04.4]}
12... Bxe6 {[%clk 0:02:59.7]} 13. Bxb7 {[%clk 0:03:04.4]} 13... Rab8 {[%clk
0:03:00.1]} 14. Bg2 {[%clk 0:03:05]} 14... h5 {[%clk 0:03:00.7]} 15. Qd2 {[%clk
0:02:59.9]} 15... h4 {[%clk 0:02:57.7]} 16. Nd5 {[%clk 0:02:59.7]} 16... Bxd5
{[%clk 0:02:51.2]} 17. Bxd5 {[%clk 0:02:59.5]} 17... Nxd5 {[%clk 0:02:05]} 18.
Bxg7 {[%clk 0:02:58.8]} 18... Nxe3 {[%clk 0:02:05.5]} 19. Bh6 {[%clk 0:01:37.2]}
19... Nxf1 {[%clk 0:01:46.9]} 20. Qd4 {[%clk 0:01:36.8]} 20... Qe5 {[%clk
0:01:36.8]} 21. Qxe5 {[%clk 0:01:37]} 21... dxe5 {[%clk 0:01:37.2]} 22. Bxf8
{[%clk 0:01:37.9]} 22... Nxg3 {[%clk 0:01:37.1]} 23. hxg3 {[%clk 0:01:28.3]}
23... Kxf8 {[%clk 0:01:36.7]} 24. gxh4 {[%clk 0:01:26.3]} 24... Ke7 {[%clk
0:01:37.3]} 25. Re1 {[%clk 0:01:22.9]} 25... Ke6 {[%clk 0:01:36.6]} 26. f4
{[%clk 0:01:22.7]} 26... f6 {[%clk 0:01:35.8]} 27. fxe5 {[%clk 0:01:23.1]} 27...
fxe5 {[%clk 0:01:36.7]} 28. Kg2 {[%clk 0:01:22.6]} 28... a5 {[%clk 0:01:37.3]}
29. Kg3 {[%clk 0:01:19.7]} 29... a4 {[%clk 0:01:35.3]} 30. Re3 {[%clk
0:01:19.6]} 30... Rf8 {[%clk 0:01:32.7]} 31. Kg4 {[%clk 0:01:18.8]} 31... Rf2
{[%clk 0:01:32.2]} 32. a3 {[%clk 0:00:59.5]} 32... axb3 {[%clk 0:01:31.5]} 33.
Rxb3 {[%clk 0:01:00.4]} 33... Rf4+ {[%clk 0:01:31.6]} 34. Kg5 {[%clk 0:00:58.9]}
34... Rxc4 {[%clk 0:01:32.5]} 35. Rb8 {[%clk 0:00:39.5]} 35... Ra4 {[%clk
0:01:30.8]} 36. Re8+ {[%clk 0:00:37.1]} 36... Kd5 {[%clk 0:01:29.9]} 37. Rd8+
{[%clk 0:00:34.7]} 37... Ke6 {[%clk 0:01:29.2]} 38. Re8+ {[%clk 0:00:33.5]}
38... Kd5 {[%clk 0:01:29.6]} 39. Rd8+ {[%clk 0:00:31.7]} 39... Kc6 {[%clk
0:01:30.1]} 40. Re8 {[%clk 0:00:29.4]} 40... Rxa3 {[%clk 0:01:30.4]} 41. Rxe5
{[%clk 0:00:27.9]} 41... Rg3+ {[%clk 0:01:30.9]} 42. Kf4 {[%clk 0:00:27.1]}
42... Rg1 {[%clk 0:01:30.5]} 43. Re6+ {[%clk 0:00:20.5]} 43... Kd5 {[%clk
0:01:29.6]} 44. Re5+ {[%clk 0:00:21.1]} 44... Kd6 {[%clk 0:01:29.9]} 45. Rg5
{[%clk 0:00:21.6]} 45... Rxg5 {[%clk 0:01:25]} 46. Kxg5 {[%clk 0:00:22.5]} 46...
c5 {[%clk 0:01:25.6]} 47. Kxg6 {[%clk 0:00:23.1]} 47... c4 {[%clk 0:01:26.5]}
48. h5 {[%clk 0:00:24]} 48... c3 {[%clk 0:01:26.3]} 49. h6 {[%clk 0:00:24.9]}
49... c2 {[%clk 0:01:27]} 50. h7 {[%clk 0:00:25.8]} 50... c1=Q {[%clk
0:01:26.7]} 51. h8=Q {[%clk 0:00:26.7]} 51... Qg1+ {[%clk 0:01:24.5]} 52. Kf7
{[%clk 0:00:23.3]} 52... Qf2+ {[%clk 0:01:24]} 53. Qf6+ {[%clk 0:00:23.5]} 53...
Qxf6+ {[%clk 0:01:24.4]} 54. Kxf6 {[%clk 0:00:24.4]} 1/2-1/2

[Event "*** Titled Tuesday Blitz"]
[Site "Chess.com"]
[Date "2021.02.09"]
[Round "7"]
[White "MPGM"]
[Black "eduardoperalta"]
[Result "1-0"]
[WhiteElo "2622"]
[BlackElo "2407"]
[TimeControl "180+1"]
[EndTime "11:17:51 PST"]
[Termination "MPGM won by resignation"]

1. c4 {[%clk 0:03:00.9]} 1... Nf6 {[%clk 0:02:59]} 2. Nc3 {[%clk 0:02:59.8]}
2... g6 {[%clk 0:02:57]} 3. e4 {[%clk 0:02:56.9]} 3... d6 {[%clk 0:02:56.1]} 4.
d4 {[%clk 0:02:55.9]} 4... Bg7 {[%clk 0:02:55.7]} 5. h3 {[%clk 0:02:55.6]} 5...
O-O {[%clk 0:02:55.3]} 6. Be3 {[%clk 0:02:56.3]} 6... c5 {[%clk 0:02:47]} 7. Nf3
{[%clk 0:02:55.7]} 7... cxd4 {[%clk 0:02:44]} 8. Nxd4 {[%clk 0:02:56.6]} 8...
Nc6 {[%clk 0:02:43.6]} 9. Be2 {[%clk 0:02:54.5]} 9... Bd7 {[%clk 0:02:39.1]} 10.
O-O {[%clk 0:02:53.9]} 10... Nxd4 {[%clk 0:02:34.4]} 11. Bxd4 {[%clk 0:02:54.8]}
11... Bc6 {[%clk 0:02:34.3]} 12. Qc2 {[%clk 0:02:54.3]} 12... Nd7 {[%clk
0:02:30.7]} 13. Bxg7 {[%clk 0:02:51.9]} 13... Kxg7 {[%clk 0:02:31.6]} 14. b4
{[%clk 0:02:46.8]} 14... b6 {[%clk 0:02:30.2]} 15. f4 {[%clk 0:02:43.1]} 15...
Kg8 {[%clk 0:02:26]} 16. Rad1 {[%clk 0:02:32.6]} 16... Rc8 {[%clk 0:02:22]} 17.
Qd2 {[%clk 0:02:12.6]} 17... Qc7 {[%clk 0:02:20.2]} 18. Qe3 {[%clk 0:01:55.8]}
18... e5 {[%clk 0:02:03.5]} 19. f5 {[%clk 0:01:46.1]} 19... Kg7 {[%clk
0:01:52.7]} 20. g4 {[%clk 0:01:26.3]} 20... f6 {[%clk 0:01:49.5]} 21. h4 {[%clk
0:01:21.7]} 21... a5 {[%clk 0:01:47.2]} 22. a3 {[%clk 0:01:19.4]} 22... axb4
{[%clk 0:01:45.9]} 23. axb4 {[%clk 0:01:20.3]} 23... Ra8 {[%clk 0:01:38.5]} 24.
g5 {[%clk 0:01:13.6]} 24... Ra3 {[%clk 0:01:35.9]} 25. Qd2 {[%clk 0:01:07.5]}
25... Rxc3 {[%clk 0:01:26.8]} 26. Qxc3 {[%clk 0:01:04.5]} 26... Bxe4 {[%clk
0:01:27.7]} 27. fxg6 {[%clk 0:01:03.3]} 27... hxg6 {[%clk 0:01:27.3]} 28. gxf6+
{[%clk 0:00:59.1]} 28... Nxf6 {[%clk 0:01:23.8]} 29. Qe3 {[%clk 0:00:55.8]}
29... Ba8 {[%clk 0:01:19.7]} 30. Ra1 {[%clk 0:00:20.9]} 30... Qc6 {[%clk
0:01:17.6]} 31. Bf3 {[%clk 0:00:20.7]} 31... e4 {[%clk 0:01:17.2]} 32. Be2
{[%clk 0:00:20.5]} 32... d5 {[%clk 0:01:14.8]} 33. Ra7+ {[%clk 0:00:19.8]} 33...
Rf7 {[%clk 0:01:10.9]} 34. Rxf7+ {[%clk 0:00:19.9]} 34... Kxf7 {[%clk
0:01:11.3]} 35. cxd5 {[%clk 0:00:20.6]} 35... Qxd5 {[%clk 0:01:09.7]} 36. Qxb6
{[%clk 0:00:21.2]} 36... Qe6 {[%clk 0:00:56.8]} 37. Bc4 {[%clk 0:00:15.6]} 37...
Bd5 {[%clk 0:00:54]} 38. Qxe6+ {[%clk 0:00:14.8]} 38... Kxe6 {[%clk 0:00:54.1]}
39. Rxf6+ {[%clk 0:00:14.4]} 39... Kxf6 {[%clk 0:00:54]} 40. Bxd5 {[%clk
0:00:14.8]} 40... Ke5 {[%clk 0:00:53.9]} 1-0

[Event "*** Titled Tuesday Blitz"]
[Site "Chess.com"]
[Date "2021.02.09"]
[Round "7"]
[White "Fiona"]
[Black "zmeeed67"]
[Result "1-0"]
[WhiteElo "2147"]
[BlackElo "2304"]
[TimeControl "180+1"]
[EndTime "11:17:51 PST"]
[Termination "Fiona won on time"]

1. e4 {[%clk 0:03:00.9]} 1... c5 {[%clk 0:02:58.9]} 2. Nc3 {[%clk 0:03:00.9]}
2... Nc6 {[%clk 0:02:58.8]} 3. f4 {[%clk 0:03:01.2]} 3... g6 {[%clk 0:02:58.3]}
4. Nf3 {[%clk 0:03:01.8]} 4... Bg7 {[%clk 0:02:58.7]} 5. Bb5 {[%clk 0:03:02.4]}
5... Nd4 {[%clk 0:02:58.5]} 6. O-O {[%clk 0:03:03.1]} 6... Nxb5 {[%clk
0:02:41.8]} 7. Nxb5 {[%clk 0:03:04]} 7... d6 {[%clk 0:02:40.7]} 8. d3 {[%clk
0:03:02.1]} 8... Nf6 {[%clk 0:02:36.2]} 9. Kh1 {[%clk 0:03:01.3]} 9... O-O
{[%clk 0:02:33.7]} 10. Qe1 {[%clk 0:03:01.6]} 10... Bg4 {[%clk 0:02:01.4]} 11.
Qh4 {[%clk 0:02:58.8]} 11... c4 {[%clk 0:01:49]} 12. f5 {[%clk 0:02:49.5]} 12...
cxd3 {[%clk 0:01:44.7]} 13. cxd3 {[%clk 0:02:50.4]} 13... h5 {[%clk 0:00:55.3]}
14. Nc3 {[%clk 0:02:42.9]} 14... Bxf3 {[%clk 0:00:47.8]} 15. Rxf3 {[%clk
0:02:40.2]} 15... Kh7 {[%clk 0:00:33]} 16. Ne2 {[%clk 0:02:26.9]} 16... Ng4
{[%clk 0:00:31.1]} 17. h3 {[%clk 0:02:19.6]} 17... Ne5 {[%clk 0:00:28.2]} 18.
Rg3 {[%clk 0:02:05.4]} 18... Rc8 {[%clk 0:00:12.7]} 19. Bg5 {[%clk 0:02:00.1]}
19... Bf6 {[%clk 0:00:07.2]} 20. Bxf6 {[%clk 0:01:52.8]} 20... exf6 {[%clk
0:00:07.6]} 21. Nf4 {[%clk 0:01:53.5]} 21... Rh8 {[%clk 0:00:01.9]} 22. d4
{[%clk 0:01:52.9]} 22... g5 {[%clk 0:00:01.7]} 23. Qxh5+ {[%clk 0:01:41.2]}
23... Kg7 {[%clk 0:00:02]} 24. Qe2 {[%clk 0:01:41.8]} 24... Nc4 {[%clk 0:00:02]}
25. Nh5+ {[%clk 0:01:31.6]} 25... Kf8 {[%clk 0:00:02]} 26. Rc1 {[%clk
0:01:26.2]} 26... Nb6 {[%clk 0:00:02.3]} 27. Rxc8 {[%clk 0:01:24]} 27... Qxc8
{[%clk 0:00:03.2]} 28. Nxf6 {[%clk 0:01:19.4]} 28... Qc1+ {[%clk 0:00:03.8]} 29.
Kh2 {[%clk 0:01:19.1]} 29... Rh4 {[%clk 0:00:03.8]} 30. Qb5 {[%clk 0:01:09.9]}
30... Rf4 {[%clk 0:00:02.5]} 31. e5 {[%clk 0:01:03.9]} 31... Qc8 {[%clk
0:00:01.4]} 32. Rxg5 {[%clk 0:00:57.2]} 32... Ke7 {[%clk 0:00:01.1]} 33. Rg8
{[%clk 0:00:52.2]} 1-0

[Event "*** Titled Tuesday Blitz"]
[Site "Chess.com"]
[Date "2021.02.09"]
[Round "7"]
[White "Cuajada_Zero"]
[Black "CHENNAIBOND"]
[Result "1-0"]
[WhiteElo "2197"]
[BlackElo "1677"]
[TimeControl "180+1"]
[EndTime "11:17:53 PST"]
[Termination "Cuajada_Zero won by resignation"]

1. d4 {[%clk 0:03:00.9]} 1... Nf6 {[%clk 0:02:57.1]} 2. c4 {[%clk 0:02:58.8]}
2... e6 {[%clk 0:02:56.7]} 3. Nc3 {[%clk 0:02:54.4]} 3... Bb4 {[%clk 0:02:57]}
4. e3 {[%clk 0:02:54]} 4... O-O {[%clk 0:02:56.3]} 5. Ne2 {[%clk 0:02:54.1]}
5... Re8 {[%clk 0:02:55.5]} 6. a3 {[%clk 0:02:52.7]} 6... Bf8 {[%clk 0:02:56]}
7. d5 {[%clk 0:02:52.8]} 7... a5 {[%clk 0:02:18.2]} 8. b3 {[%clk 0:02:43]} 8...
exd5 {[%clk 0:02:14.4]} 9. cxd5 {[%clk 0:02:42.7]} 9... Na6 {[%clk 0:02:14.2]}
10. g3 {[%clk 0:02:40.8]} 10... Nc5 {[%clk 0:02:09.1]} 11. Bg2 {[%clk
0:02:36.7]} 11... c6 {[%clk 0:02:01.1]} 12. Nf4 {[%clk 0:02:21.7]} 12... Bd6
{[%clk 0:01:50.6]} 13. O-O {[%clk 0:02:16.9]} 13... Bxf4 {[%clk 0:01:43.6]} 14.
exf4 {[%clk 0:02:16.5]} 14... Nfe4 {[%clk 0:01:39.2]} 15. Nxe4 {[%clk
0:02:13.2]} 15... Nxe4 {[%clk 0:01:38.6]} 16. Bb2 {[%clk 0:02:04.7]} 16... Qb6
{[%clk 0:01:29.7]} 17. Qc2 {[%clk 0:01:46.7]} 17... cxd5 {[%clk 0:01:24.7]} 18.
Rad1 {[%clk 0:01:34.3]} 18... Qc6 {[%clk 0:01:14.7]} 19. Qd3 {[%clk 0:01:19.4]}
19... b6 {[%clk 0:01:10.2]} 20. Qd4 {[%clk 0:01:01.2]} 20... Nf6 {[%clk
0:01:07.8]} 21. Bxd5 {[%clk 0:00:44.7]} 21... Qc5 {[%clk 0:01:02.7]} 22. Qxc5
{[%clk 0:00:38.1]} 22... bxc5 {[%clk 0:01:02.3]} 23. Bxa8 {[%clk 0:00:38.1]}
23... Ba6 {[%clk 0:01:03.2]} 24. Bf3 {[%clk 0:00:28.1]} 24... Bxf1 {[%clk
0:01:00.2]} 25. Kxf1 {[%clk 0:00:29]} 25... Re7 {[%clk 0:00:56.3]} 26. Bc3
{[%clk 0:00:26]} 26... a4 {[%clk 0:00:54.9]} 27. bxa4 {[%clk 0:00:26.9]} 27...
d5 {[%clk 0:00:53.3]} 28. Bxf6 {[%clk 0:00:25.9]} 28... gxf6 {[%clk 0:00:52.5]}
29. Rxd5 {[%clk 0:00:26.3]} 29... Ra7 {[%clk 0:00:51.6]} 30. Rxc5 {[%clk
0:00:20]} 30... Rxa4 {[%clk 0:00:52.2]} 31. Rc3 {[%clk 0:00:20.2]} 31... Rd4
{[%clk 0:00:51.7]} 32. Bc6 {[%clk 0:00:19]} 32... Rd8 {[%clk 0:00:51.4]} 33. a4
{[%clk 0:00:19.2]} 33... Rb8 {[%clk 0:00:50.7]} 34. a5 {[%clk 0:00:18]} 34...
Rb1+ {[%clk 0:00:51.6]} 35. Kg2 {[%clk 0:00:17.9]} 35... Ra1 {[%clk 0:00:51.3]}
36. Rc5 {[%clk 0:00:18.1]} 36... Kf8 {[%clk 0:00:48.7]} 37. Bb7 {[%clk
0:00:16.3]} 37... Ke7 {[%clk 0:00:47.9]} 38. a6 {[%clk 0:00:16.8]} 38... Kd6
{[%clk 0:00:47.5]} 39. Rh5 {[%clk 0:00:16.8]} 39... h6 {[%clk 0:00:42.3]} 40.
Rxh6 {[%clk 0:00:16.9]} 1-0

[Event "*** Titled Tuesday Blitz"]
[Site "Chess.com"]
[Date "2021.02.09"]
[Round "7"]
[White "Kostukov_Alex"]
[Black "skoularikii"]
[Result "1-0"]
[WhiteElo "2386"]
[BlackElo "2491"]
[TimeControl "180+1"]
[EndTime "11:17:55 PST"]
[Termination "Kostukov_Alex won on time"]

1. g3 {[%clk 0:03:00.9]} 1... d5 {[%clk 0:02:59.7]} 2. Bg2 {[%clk 0:03:01.3]}
2... Nf6 {[%clk 0:02:59.5]} 3. d3 {[%clk 0:03:01.7]} 3... g6 {[%clk 0:02:58.6]}
4. e4 {[%clk 0:03:01.7]} 4... dxe4 {[%clk 0:02:57.7]} 5. dxe4 {[%clk 0:03:02.6]}
5... Qxd1+ {[%clk 0:02:57.4]} 6. Kxd1 {[%clk 0:03:03.5]} 6... Nc6 {[%clk
0:02:47.6]} 7. f3 {[%clk 0:03:00.8]} 7... Be6 {[%clk 0:02:42.7]} 8. Be3 {[%clk
0:03:00]} 8... O-O-O+ {[%clk 0:02:41.5]} 9. Nd2 {[%clk 0:03:00.3]} 9... Bg7
{[%clk 0:02:33.5]} 10. Bh3 {[%clk 0:02:58.2]} 10... Nd7 {[%clk 0:02:22.1]} 11.
Bxe6 {[%clk 0:02:56]} 11... fxe6 {[%clk 0:02:23]} 12. c3 {[%clk 0:02:53.3]}
12... Rhf8 {[%clk 0:02:05.2]} 13. Ke2 {[%clk 0:02:52.8]} 13... Nde5 {[%clk
0:01:59.8]} 14. Nh3 {[%clk 0:02:49.2]} 14... Nd3 {[%clk 0:01:26.7]} 15. Rab1
{[%clk 0:02:41.8]} 15... h6 {[%clk 0:01:22.8]} 16. Nf4 {[%clk 0:02:32.7]} 16...
Nxf4+ {[%clk 0:01:18.7]} 17. Bxf4 {[%clk 0:02:15.1]} 17... g5 {[%clk 0:01:10.2]}
18. Be3 {[%clk 0:02:13]} 18... Ne5 {[%clk 0:01:10.2]} 19. h4 {[%clk 0:02:08.3]}
19... g4 {[%clk 0:01:08.5]} 20. f4 {[%clk 0:02:06.9]} 20... Nd3 {[%clk
0:01:03.7]} 21. e5 {[%clk 0:02:02.8]} 21... h5 {[%clk 0:00:51.5]} 22. Ne4 {[%clk
0:01:57.9]} 22... Bxe5 {[%clk 0:00:44.9]} 23. fxe5 {[%clk 0:01:54]} 23... Nxe5
{[%clk 0:00:43.8]} 24. Bf4 {[%clk 0:01:46.2]} 24... Ng6 {[%clk 0:00:36.7]} 25.
Bg5 {[%clk 0:01:40]} 25... Rf3 {[%clk 0:00:35.3]} 26. Rhf1 {[%clk 0:01:38]}
26... Rdf8 {[%clk 0:00:31.2]} 27. Rbd1 {[%clk 0:01:21.3]} 27... Ne5 {[%clk
0:00:25.7]} 28. Bxe7 {[%clk 0:01:12.3]} 28... Re8 {[%clk 0:00:25.6]} 29. Bg5
{[%clk 0:01:11.8]} 29... b6 {[%clk 0:00:24.4]} 30. Bf4 {[%clk 0:01:09.3]} 30...
Nc4 {[%clk 0:00:21.3]} 31. b3 {[%clk 0:01:06.4]} 31... e5 {[%clk 0:00:13]} 32.
Bg5 {[%clk 0:01:01.3]} 32... Nb2 {[%clk 0:00:05.7]} 33. Rd2 {[%clk 0:00:57.6]}
33... Ref8 {[%clk 0:00:06]} 34. Rxf3 {[%clk 0:00:54]} 34... gxf3+ {[%clk
0:00:06.3]} 35. Kf2 {[%clk 0:00:51.9]} 1-0

[Event "*** Titled Tuesday Blitz"]
[Site "Chess.com"]
[Date "2021.02.09"]
[Round "7"]
[White "anon481216"]
[Black "NikolasTheiss"]
[Result "1-0"]
[WhiteElo "2473"]
[BlackElo "2323"]
[TimeControl "180+1"]
[EndTime "11:17:55 PST"]
[Termination "anon481216 won on time"]

1. d4 {[%clk 0:03:00.9]} 1... g5 {[%clk 0:03:00.3]} 2. Bxg5 {[%clk 0:02:59]}
2... Bg7 {[%clk 0:03:00.9]} 3. Nf3 {[%clk 0:02:58.4]} 3... c5 {[%clk 0:03:01.4]}
4. c3 {[%clk 0:02:55]} 4... Qb6 {[%clk 0:03:00.9]} 5. Qb3 {[%clk 0:02:50.2]}
5... Nc6 {[%clk 0:02:52.5]} 6. e3 {[%clk 0:02:47.6]} 6... Nf6 {[%clk 0:02:45]}
7. Nbd2 {[%clk 0:02:43.9]} 7... d6 {[%clk 0:02:21.2]} 8. dxc5 {[%clk 0:02:17.9]}
8... Qxc5 {[%clk 0:02:15.8]} 9. Bd3 {[%clk 0:02:06.4]} 9... Be6 {[%clk 0:02:08]}
10. Qb5 {[%clk 0:01:59.3]} 10... O-O-O {[%clk 0:01:57.2]} 11. Qxc5 {[%clk
0:01:55.3]} 11... dxc5 {[%clk 0:01:58.1]} 12. Ke2 {[%clk 0:01:50.9]} 12... Bg4
{[%clk 0:01:37.9]} 13. h3 {[%clk 0:01:46.8]} 13... Ne5 {[%clk 0:01:36.1]} 14.
Bc2 {[%clk 0:01:35.4]} 14... Nxf3 {[%clk 0:00:51.3]} 15. Nxf3 {[%clk 0:01:34.9]}
15... Be6 {[%clk 0:00:37.8]} 16. Bb3 {[%clk 0:01:30.9]} 16... Nd5 {[%clk
0:00:20.9]} 17. Rad1 {[%clk 0:01:24.7]} 17... f6 {[%clk 0:00:20.8]} 18. Bh4
{[%clk 0:01:23.7]} 18... a5 {[%clk 0:00:16.9]} 19. Bg3 {[%clk 0:01:19.8]} 19...
a4 {[%clk 0:00:13.7]} 20. Bxa4 {[%clk 0:01:17.4]} 20... f5 {[%clk 0:00:12.9]}
21. Bb3 {[%clk 0:01:15]} 21... b5 {[%clk 0:00:12.7]} 22. Be5 {[%clk 0:01:04]}
22... Rhg8 {[%clk 0:00:09.4]} 23. g3 {[%clk 0:01:00.5]} 23... c4 {[%clk
0:00:06.8]} 24. Bc2 {[%clk 0:00:59.1]} 24... Nf6 {[%clk 0:00:06.7]} 25. Nd4
{[%clk 0:00:56]} 25... Rxd4 {[%clk 0:00:04.4]} 26. Rxd4 {[%clk 0:00:51.8]} 26...
Bd5 {[%clk 0:00:04.9]} 27. Rhd1 {[%clk 0:00:46.6]} 27... e6 {[%clk 0:00:04.6]}
28. f3 {[%clk 0:00:41.7]} 28... Nd7 {[%clk 0:00:03.2]} 29. Bxg7 {[%clk
0:00:41.3]} 29... Rxg7 {[%clk 0:00:04.1]} 30. Kf2 {[%clk 0:00:33.3]} 1-0